[Event "Early-Titled-Tuesday-Blitz-April-23-2024"]
[Site "Chess.com"]
[Date "2024.04.23"]
[Round "2"]
[White "zverr1"]
[Black "GMG"]
[Result "0-1"]
[WhiteElo "2490"]
[BlackElo "2776"]
[TimeControl "180+1"]
[EndTime "8:16:57 PDT"]
[Termination "GMG won by checkmate"]

1. e4 {[%clk 0:03:00.9]} 1... c5 {[%clk 0:02:59.8]} 2. Nf3 {[%clk 0:03:00.9]}
2... Nc6 {[%clk 0:03:00.3]} 3. d4 {[%clk 0:03:01]} 3... cxd4 {[%clk 0:03:01.2]}
4. Nxd4 {[%clk 0:03:01.9]} 4... Nf6 {[%clk 0:03:01.3]} 5. Nc3 {[%clk 0:03:02.5]}
5... e5 {[%clk 0:03:01.9]} 6. Ndb5 {[%clk 0:03:03.2]} 6... d6 {[%clk 0:03:02.3]}
7. Be3 {[%clk 0:03:04]} 7... a6 {[%clk 0:02:59.8]} 8. Na3 {[%clk 0:03:04]} 8...
Rb8 {[%clk 0:03:00.5]} 9. Nd5 {[%clk 0:03:00.4]} 9... Nxd5 {[%clk 0:02:52.8]}
10. exd5 {[%clk 0:03:01.3]} 10... Ne7 {[%clk 0:02:53]} 11. c4 {[%clk 0:02:57]}
11... Nf5 {[%clk 0:02:51.3]} 12. Bd2 {[%clk 0:02:56.7]} 12... e4 {[%clk
0:02:36.6]} 13. Bc3 {[%clk 0:02:33.5]} 13... Be7 {[%clk 0:02:32]} 14. Be2 {[%clk
0:02:27.3]} 14... Bf6 {[%clk 0:02:19.1]} 15. Qc2 {[%clk 0:02:21.4]} 15... Bxc3+
{[%clk 0:02:13.6]} 16. Qxc3 {[%clk 0:02:22.3]} 16... Qg5 {[%clk 0:02:07.4]} 17.
g3 {[%clk 0:01:48.1]} 17... O-O {[%clk 0:02:03]} 18. h4 {[%clk 0:01:46.3]} 18...
Qe7 {[%clk 0:01:55.1]} 19. O-O-O {[%clk 0:01:30.9]} 19... Bd7 {[%clk 0:01:51.1]}
20. Kb1 {[%clk 0:01:22.3]} 20... b5 {[%clk 0:01:45.4]} 21. Nc2 {[%clk
0:01:03.4]} 21... bxc4 {[%clk 0:01:36.8]} 22. Nd4 {[%clk 0:00:49]} 22... Rfc8
{[%clk 0:01:34.3]} 23. g4 {[%clk 0:00:46.1]} 23... Nxh4 {[%clk 0:01:24.1]} 24.
Qh3 {[%clk 0:00:45.5]} 24... g5 {[%clk 0:01:23.7]} 25. Qc3 {[%clk 0:00:35]}
25... Qe5 {[%clk 0:01:20.9]} 26. Ka1 {[%clk 0:00:22.3]} 26... Rc5 {[%clk
0:01:18.8]} 27. Qe3 {[%clk 0:00:17]} 27... c3 {[%clk 0:01:15.1]} 28. b3 {[%clk
0:00:13]} 28... c2 {[%clk 0:01:10.5]} 29. Rc1 {[%clk 0:00:13.6]} 29... Rb4
{[%clk 0:01:10.7]} 30. Bc4 {[%clk 0:00:06.9]} 30... Nf3 {[%clk 0:01:00.8]} 31.
Rxc2 {[%clk 0:00:02]} 31... Nxd4 {[%clk 0:00:59.7]} 32. Rc3 {[%clk 0:00:02.7]}
32... Rcxc4 {[%clk 0:00:58.2]} 33. bxc4 {[%clk 0:00:02.7]} 33... Nc2# {[%clk
0:00:57.9]} 0-1

[Event "Early-Titled-Tuesday-Blitz-April-23-2024"]
[Site "Chess.com"]
[Date "2024.04.23"]
[Round "2"]
[White "rhwr"]
[Black "secretworker2027"]
[Result "0-1"]
[WhiteElo "2321"]
[BlackElo "2704"]
[TimeControl "180+1"]
[EndTime "8:16:57 PDT"]
[Termination "secretworker2027 won by resignation"]

1. e4 {[%clk 0:03:00.9]} 1... c5 {[%clk 0:02:58.8]} 2. Be2 {[%clk 0:02:58]} 2...
g6 {[%clk 0:02:53.5]} 3. f4 {[%clk 0:02:57.7]} 3... Bg7 {[%clk 0:02:53.5]} 4.
Nf3 {[%clk 0:02:58.2]} 4... d6 {[%clk 0:02:53.1]} 5. O-O {[%clk 0:02:57.7]} 5...
Nf6 {[%clk 0:02:53.5]} 6. d3 {[%clk 0:02:57.8]} 6... O-O {[%clk 0:02:53.2]} 7.
Qe1 {[%clk 0:02:55]} 7... Nc6 {[%clk 0:02:52.6]} 8. c3 {[%clk 0:02:54.9]} 8...
c4 {[%clk 0:02:51.6]} 9. Nbd2 {[%clk 0:02:38.7]} 9... cxd3 {[%clk 0:02:48.6]}
10. Bxd3 {[%clk 0:02:38.3]} 10... b5 {[%clk 0:02:40]} 11. Kh1 {[%clk 0:02:36.7]}
11... b4 {[%clk 0:02:39.6]} 12. c4 {[%clk 0:02:27.9]} 12... a5 {[%clk
0:02:31.2]} 13. Rb1 {[%clk 0:02:08.3]} 13... a4 {[%clk 0:02:20.9]} 14. b3 {[%clk
0:02:07.3]} 14... a3 {[%clk 0:02:21.1]} 15. h3 {[%clk 0:01:33.7]} 15... Nd7
{[%clk 0:02:16]} 16. Qh4 {[%clk 0:01:29.8]} 16... Nc5 {[%clk 0:02:15.8]} 17. Bc2
{[%clk 0:01:25.2]} 17... e5 {[%clk 0:02:12.3]} 18. Qg3 {[%clk 0:01:15.1]} 18...
exf4 {[%clk 0:02:12.2]} 19. Qxf4 {[%clk 0:01:14.3]} 19... Ne5 {[%clk 0:02:12.8]}
20. Nxe5 {[%clk 0:01:04.6]} 20... Bxe5 {[%clk 0:01:59.4]} 21. Qf2 {[%clk
0:00:54.5]} 21... f5 {[%clk 0:01:59.3]} 22. exf5 {[%clk 0:00:52.8]} 22... Bxf5
{[%clk 0:01:57.6]} 23. Bxf5 {[%clk 0:00:50.4]} 23... Rxf5 {[%clk 0:01:58.5]} 24.
Nf3 {[%clk 0:00:48.2]} 24... Ne4 {[%clk 0:01:55.3]} 25. Qe1 {[%clk 0:00:38.3]}
25... Ng3+ {[%clk 0:01:53.1]} 26. Kg1 {[%clk 0:00:38.6]} 26... Nxf1 {[%clk
0:01:52.9]} 27. Qxf1 {[%clk 0:00:37.6]} 27... Qf6 {[%clk 0:01:52]} 28. Be3
{[%clk 0:00:35.5]} 28... Rf8 {[%clk 0:01:50.7]} 29. Qd3 {[%clk 0:00:34.7]} 29...
Rxf3 {[%clk 0:01:42]} 30. Qd5+ {[%clk 0:00:31.1]} 30... Kg7 {[%clk 0:01:38.9]}
31. gxf3 {[%clk 0:00:29.2]} 31... Qxf3 {[%clk 0:01:39.8]} 32. Qxf3 {[%clk
0:00:28.4]} 32... Rxf3 {[%clk 0:01:40.7]} 33. Bb6 {[%clk 0:00:26.9]} 33... Rxh3
{[%clk 0:01:36.3]} 34. Re1 {[%clk 0:00:22.1]} 34... Rd3 {[%clk 0:01:24.6]} 35.
Ba5 {[%clk 0:00:16.2]} 35... Bd4+ {[%clk 0:01:24.6]} 36. Kf1 {[%clk 0:00:14]}
36... Bc5 {[%clk 0:01:25.2]} 37. Re7+ {[%clk 0:00:13.4]} 37... Kf6 {[%clk
0:01:25.5]} 38. Rxh7 {[%clk 0:00:13.3]} 38... Rd2 {[%clk 0:01:25.8]} 39. Rd7
{[%clk 0:00:09.8]} 39... Ke6 {[%clk 0:01:22.3]} 40. Rg7 {[%clk 0:00:08.6]} 40...
Rf2+ {[%clk 0:01:21.3]} 41. Ke1 {[%clk 0:00:07.4]} 41... Rxa2 {[%clk 0:01:22.2]}
42. Rxg6+ {[%clk 0:00:07.5]} 42... Kf5 {[%clk 0:01:22.9]} 43. Rh6 {[%clk
0:00:05.7]} 43... Rb2 {[%clk 0:01:21.8]} 0-1

[Event "Early-Titled-Tuesday-Blitz-April-23-2024"]
[Site "Chess.com"]
[Date "2024.04.23"]
[Round "2"]
[White "Ramla2020"]
[Black "carloseduar100"]
[Result "1-0"]
[WhiteElo "2516"]
[BlackElo "2244"]
[TimeControl "180+1"]
[EndTime "8:16:59 PDT"]
[Termination "Ramla2020 won on time"]

1. c4 {[%clk 0:03:00.5]} 1... e6 {[%clk 0:02:59.3]} 2. d4 {[%clk 0:03:00.2]}
2... d5 {[%clk 0:02:59.5]} 3. Nf3 {[%clk 0:03:01.1]} 3... Nf6 {[%clk 0:02:59.7]}
4. Bg5 {[%clk 0:03:00.9]} 4... a6 {[%clk 0:02:59.2]} 5. cxd5 {[%clk 0:02:59.4]}
5... exd5 {[%clk 0:02:58]} 6. Nc3 {[%clk 0:02:59.6]} 6... c6 {[%clk 0:02:56.3]}
7. e3 {[%clk 0:02:59.4]} 7... Bg4 {[%clk 0:02:53]} 8. h3 {[%clk 0:02:58.2]} 8...
Bh5 {[%clk 0:02:52.2]} 9. g4 {[%clk 0:02:56.2]} 9... Bg6 {[%clk 0:02:52.2]} 10.
Ne5 {[%clk 0:02:56.6]} 10... Nbd7 {[%clk 0:02:51.9]} 11. f4 {[%clk 0:02:56.8]}
11... Be4 {[%clk 0:01:43.4]} 12. Nxe4 {[%clk 0:02:50.3]} 12... dxe4 {[%clk
0:01:43.7]} 13. Qb3 {[%clk 0:02:50.7]} 13... Nxe5 {[%clk 0:01:34.6]} 14. fxe5
{[%clk 0:02:37.1]} 14... Qa5+ {[%clk 0:01:34.6]} 15. Kf2 {[%clk 0:02:37.4]}
15... Nd7 {[%clk 0:01:32.5]} 16. Bg2 {[%clk 0:02:29.9]} 16... f6 {[%clk
0:01:18.8]} 17. Qe6+ {[%clk 0:02:29]} 17... Be7 {[%clk 0:01:09.3]} 18. exf6
{[%clk 0:02:21.7]} 18... gxf6 {[%clk 0:01:07]} 19. Bf4 {[%clk 0:02:19.2]} 19...
h5 {[%clk 0:00:58.6]} 20. Bxe4 {[%clk 0:02:15.3]} 20... Qd2+ {[%clk 0:00:48.5]}
21. Kf3 {[%clk 0:02:14.6]} 21... hxg4+ {[%clk 0:00:17.5]} 22. hxg4 {[%clk
0:02:14.3]} 22... Rxh1 {[%clk 0:00:17.3]} 23. Rxh1 {[%clk 0:02:12.8]} 23... Nf8
{[%clk 0:00:15.4]} 24. Bxc6+ {[%clk 0:01:48.9]} 24... bxc6 {[%clk 0:00:14.6]}
25. Qxc6+ {[%clk 0:01:49.8]} 25... Kf7 {[%clk 0:00:14]} 26. Qxa8 {[%clk
0:01:44.7]} 26... Qxb2 {[%clk 0:00:13.7]} 27. Qd5+ {[%clk 0:01:42.7]} 27... Ke8
{[%clk 0:00:13.4]} 28. Qb3 {[%clk 0:01:35.6]} 28... Qd2 {[%clk 0:00:11.9]} 29.
Rb1 {[%clk 0:01:30.4]} 29... Qa5 {[%clk 0:00:09.2]} 30. Qc4 {[%clk 0:01:23.1]}
30... f5 {[%clk 0:00:05]} 31. Rb8+ {[%clk 0:01:21.1]} 31... Bd8 {[%clk
0:00:02.6]} 32. Bc7 {[%clk 0:01:17.8]} 32... fxg4+ {[%clk 0:00:03.1]} 33. Ke4
{[%clk 0:01:13.3]} 1-0

[Event "Early-Titled-Tuesday-Blitz-April-23-2024"]
[Site "Chess.com"]
[Date "2024.04.23"]
[Round "2"]
[White "KuzubovYuriy"]
[Black "arenal72"]
[Result "1-0"]
[WhiteElo "2929"]
[BlackElo "2621"]
[TimeControl "180+1"]
[EndTime "8:17:00 PDT"]
[Termination "KuzubovYuriy won by resignation"]

1. d4 {[%clk 0:03:00.9]} 1... d6 {[%clk 0:02:56.7]} 2. Nf3 {[%clk 0:02:59.3]}
2... Nf6 {[%clk 0:02:52.3]} 3. c3 {[%clk 0:02:58.4]} 3... g6 {[%clk 0:02:51]} 4.
Nbd2 {[%clk 0:02:58.3]} 4... Bf5 {[%clk 0:02:47.3]} 5. h3 {[%clk 0:02:56.6]}
5... Bg7 {[%clk 0:02:46]} 6. g4 {[%clk 0:02:56.5]} 6... Bc8 {[%clk 0:02:39.2]}
7. Bg2 {[%clk 0:02:56.2]} 7... O-O {[%clk 0:02:38.5]} 8. O-O {[%clk 0:02:54.7]}
8... c5 {[%clk 0:02:38.1]} 9. Re1 {[%clk 0:02:50.6]} 9... Nc6 {[%clk 0:02:30.1]}
10. e4 {[%clk 0:02:49.6]} 10... cxd4 {[%clk 0:02:11.2]} 11. cxd4 {[%clk
0:02:50.5]} 11... Nd7 {[%clk 0:02:10.8]} 12. Nb3 {[%clk 0:02:41.2]} 12... a5
{[%clk 0:02:08.3]} 13. a4 {[%clk 0:02:40.2]} 13... e5 {[%clk 0:01:06.2]} 14. Be3
{[%clk 0:02:33.9]} 14... Qe7 {[%clk 0:00:49.7]} 15. Qd2 {[%clk 0:02:24.3]} 15...
b6 {[%clk 0:00:45.5]} 16. Red1 {[%clk 0:02:16.9]} 16... Rd8 {[%clk 0:00:31.1]}
17. Rac1 {[%clk 0:01:53]} 17... Bb7 {[%clk 0:00:22.2]} 18. d5 {[%clk 0:01:46.1]}
18... Nb4 {[%clk 0:00:19.7]} 19. Rc7 {[%clk 0:01:45.9]} 19... Ba6 {[%clk
0:00:12]} 20. Bxb6 {[%clk 0:01:39.4]} 20... Rdc8 {[%clk 0:00:12.1]} 21. Rxc8+
{[%clk 0:01:30.9]} 21... Rxc8 {[%clk 0:00:13]} 22. Bxa5 {[%clk 0:01:31.1]} 22...
Nd3 {[%clk 0:00:13]} 23. Bf1 {[%clk 0:01:21.3]} 23... N7c5 {[%clk 0:00:12.6]}
24. Nxc5 {[%clk 0:01:20.9]} 24... Nxc5 {[%clk 0:00:09.9]} 25. Bxa6 {[%clk
0:01:20.4]} 25... Nxa6 {[%clk 0:00:10.8]} 26. b4 {[%clk 0:01:20]} 26... Qd7
{[%clk 0:00:10.3]} 27. Rc1 {[%clk 0:01:18.2]} 27... Rxc1+ {[%clk 0:00:07.7]} 28.
Qxc1 {[%clk 0:01:18.3]} 28... h5 {[%clk 0:00:06.8]} 29. Qc6 {[%clk 0:01:16.5]}
29... Qa7 {[%clk 0:00:04.2]} 30. Qb6 {[%clk 0:01:08.5]} 30... Qa8 {[%clk
0:00:01.1]} 31. Qd8+ {[%clk 0:01:07.2]} 31... Qxd8 {[%clk 0:00:01.5]} 32. Bxd8
{[%clk 0:01:08.1]} 32... Nxb4 {[%clk 0:00:01.7]} 33. Nd2 {[%clk 0:01:05.1]}
33... hxg4 {[%clk 0:00:01.4]} 34. hxg4 {[%clk 0:01:05.6]} 34... Bh6 {[%clk
0:00:02.3]} 35. Nc4 {[%clk 0:01:05.3]} 35... Bf4 {[%clk 0:00:02.3]} 36. Nxd6
{[%clk 0:01:04]} 36... f5 {[%clk 0:00:02.3]} 37. gxf5 {[%clk 0:01:03.3]} 37...
gxf5 {[%clk 0:00:03.2]} 38. Nxf5 {[%clk 0:01:03.2]} 1-0

[Event "Early-Titled-Tuesday-Blitz-April-23-2024"]
[Site "Chess.com"]
[Date "2024.04.23"]
[Round "2"]
[White "Chesstiger64"]
[Black "Fh2411"]
[Result "0-1"]
[WhiteElo "2344"]
[BlackElo "2563"]
[TimeControl "180+1"]
[EndTime "8:17:00 PDT"]
[Termination "Fh2411 won by resignation"]

1. Nf3 {[%clk 0:03:00.9]} 1... d5 {[%clk 0:02:55.6]} 2. g3 {[%clk 0:03:01.2]}
2... c6 {[%clk 0:02:50.6]} 3. Bg2 {[%clk 0:03:01.5]} 3... Bf5 {[%clk 0:02:50.7]}
4. O-O {[%clk 0:03:02.1]} 4... e6 {[%clk 0:02:50.2]} 5. d3 {[%clk 0:03:01.5]}
5... Nf6 {[%clk 0:02:48.1]} 6. b3 {[%clk 0:03:01.4]} 6... h6 {[%clk 0:02:47.1]}
7. Bb2 {[%clk 0:03:01.7]} 7... Be7 {[%clk 0:02:47.5]} 8. c4 {[%clk 0:03:02.3]}
8... O-O {[%clk 0:02:40.2]} 9. Nbd2 {[%clk 0:03:02.8]} 9... a5 {[%clk
0:02:39.4]} 10. Rc1 {[%clk 0:02:58.8]} 10... Na6 {[%clk 0:02:37]} 11. Re1 {[%clk
0:02:56.4]} 11... Bh7 {[%clk 0:02:34.6]} 12. Qc2 {[%clk 0:02:55.3]} 12... a4
{[%clk 0:02:29.3]} 13. Ne5 {[%clk 0:02:54.1]} 13... Nb4 {[%clk 0:02:26.3]} 14.
Qb1 {[%clk 0:02:53.4]} 14... axb3 {[%clk 0:02:25.4]} 15. axb3 {[%clk 0:02:52.9]}
15... Qa5 {[%clk 0:02:18.8]} 16. Bc3 {[%clk 0:02:48.9]} 16... Qa2 {[%clk
0:02:19.3]} 17. Qxa2 {[%clk 0:02:28]} 17... Nxa2 {[%clk 0:02:17]} 18. Rc2 {[%clk
0:02:28.3]} 18... Nxc3 {[%clk 0:02:16.6]} 19. Rxc3 {[%clk 0:02:28.6]} 19... Ra2
{[%clk 0:02:16]} 20. Ndf3 {[%clk 0:02:26.3]} 20... Bb4 {[%clk 0:02:14.6]} 21.
Rcc1 {[%clk 0:02:25]} 21... Bxe1 {[%clk 0:02:14.6]} 22. Rxe1 {[%clk 0:02:25.9]}
22... Rfa8 {[%clk 0:02:14.8]} 23. b4 {[%clk 0:02:20.4]} 23... Ra1 {[%clk
0:02:13.6]} 24. Kf1 {[%clk 0:02:20.6]} 24... R8a4 {[%clk 0:02:06]} 25. b5 {[%clk
0:02:15.9]} 25... cxb5 {[%clk 0:02:03.8]} 26. cxb5 {[%clk 0:02:16]} 26... Rxe1+
{[%clk 0:02:01.6]} 27. Kxe1 {[%clk 0:02:16]} 27... Rb4 {[%clk 0:02:02.3]} 28.
Kd2 {[%clk 0:02:08.9]} 28... Rxb5 {[%clk 0:02:02.4]} 29. Nd4 {[%clk 0:02:09.6]}
29... Ra5 {[%clk 0:01:54.4]} 30. Kc3 {[%clk 0:02:07.7]} 30... Ne8 {[%clk
0:01:49.2]} 31. f4 {[%clk 0:02:06.4]} 31... Nd6 {[%clk 0:01:47.6]} 32. g4 {[%clk
0:02:02.4]} 32... Ra1 {[%clk 0:01:15.4]} 33. Nef3 {[%clk 0:01:51.9]} 33... Kf8
{[%clk 0:01:12.4]} 34. h4 {[%clk 0:01:51.8]} 34... Ke7 {[%clk 0:01:11.5]} 35. h5
{[%clk 0:01:52.1]} 35... f6 {[%clk 0:01:07.6]} 36. g5 {[%clk 0:01:48.2]} 36...
Bf5 {[%clk 0:01:03.5]} 37. Nh4 {[%clk 0:01:40.6]} 37... fxg5 {[%clk 0:00:49]}
38. fxg5 {[%clk 0:01:39.8]} 38... hxg5 {[%clk 0:00:48.6]} 39. Nhxf5+ {[%clk
0:01:33.9]} 39... Nxf5 {[%clk 0:00:49.5]} 40. Nxf5+ {[%clk 0:01:34]} 40... exf5
{[%clk 0:00:50.4]} 41. Bxd5 {[%clk 0:01:34.6]} 41... b6 {[%clk 0:00:51.1]} 42.
Kd4 {[%clk 0:01:32.9]} 42... Kf6 {[%clk 0:00:46.4]} 43. e4 {[%clk 0:01:27.4]}
43... fxe4 {[%clk 0:00:45.6]} 44. dxe4 {[%clk 0:01:27.3]} 44... Re1 {[%clk
0:00:46.2]} 45. Kd3 {[%clk 0:01:24.8]} 45... g4 {[%clk 0:00:46.1]} 46. Kd2
{[%clk 0:01:25.2]} 46... Ra1 {[%clk 0:00:41.8]} 47. Ke3 {[%clk 0:01:25.1]} 47...
Ke5 {[%clk 0:00:42.2]} 48. Kf2 {[%clk 0:01:23.9]} 48... Kf4 {[%clk 0:00:42.6]}
0-1

[Event "Early-Titled-Tuesday-Blitz-April-23-2024"]
[Site "Chess.com"]
[Date "2024.04.23"]
[Round "2"]
[White "L4ncer"]
[Black "Levanzovsky"]
[Result "0-1"]
[WhiteElo "2260"]
[BlackElo "2525"]
[TimeControl "180+1"]
[EndTime "8:17:01 PDT"]
[Termination "Levanzovsky won on time"]

1. e4 {[%clk 0:02:55.2]} 1... e5 {[%clk 0:03:00]} 2. Bc4 {[%clk 0:02:48.8]} 2...
Nf6 {[%clk 0:02:59]} 3. d4 {[%clk 0:02:48.9]} 3... exd4 {[%clk 0:02:55.6]} 4.
Nf3 {[%clk 0:02:48.7]} 4... Nc6 {[%clk 0:02:55.5]} 5. e5 {[%clk 0:02:48.8]} 5...
d5 {[%clk 0:02:54.2]} 6. Bb5 {[%clk 0:02:48.9]} 6... Ne4 {[%clk 0:02:54.7]} 7.
Nxd4 {[%clk 0:02:48.9]} 7... Bd7 {[%clk 0:02:54.8]} 8. Bxc6 {[%clk 0:02:46.6]}
8... bxc6 {[%clk 0:02:55.7]} 9. O-O {[%clk 0:02:41.5]} 9... Bc5 {[%clk
0:02:55.9]} 10. f3 {[%clk 0:02:39.1]} 10... Ng5 {[%clk 0:02:55.3]} 11. Be3
{[%clk 0:02:39.1]} 11... Bb6 {[%clk 0:02:54.3]} 12. f4 {[%clk 0:02:37.9]} 12...
Ne4 {[%clk 0:02:54]} 13. Nc3 {[%clk 0:02:37.9]} 13... c5 {[%clk 0:02:52.6]} 14.
Nb3 {[%clk 0:02:34.6]} 14... Nxc3 {[%clk 0:02:28.9]} 15. bxc3 {[%clk 0:02:34.5]}
15... c4 {[%clk 0:02:02.5]} 16. Nd4 {[%clk 0:02:34.1]} 16... c5 {[%clk
0:02:02.7]} 17. Ne2 {[%clk 0:02:34.1]} 17... Bc6 {[%clk 0:02:03.1]} 18. f5
{[%clk 0:02:15.1]} 18... Qh4 {[%clk 0:01:58.4]} 19. Rf4 {[%clk 0:02:09.3]} 19...
Qh5 {[%clk 0:01:57.8]} 20. Qf1 {[%clk 0:01:52.8]} 20... O-O-O {[%clk 0:01:46.5]}
21. Ng3 {[%clk 0:01:40]} 21... Qg5 {[%clk 0:01:45.7]} 22. Qf2 {[%clk 0:00:57.6]}
22... Qe7 {[%clk 0:01:45.3]} 23. a4 {[%clk 0:00:51.1]} 23... Qxe5 {[%clk
0:01:27.2]} 24. a5 {[%clk 0:00:46.2]} 24... Qxc3 {[%clk 0:01:25.1]} 25. Rb1
{[%clk 0:00:35.1]} 25... Qxa5 {[%clk 0:01:19.7]} 26. f6 {[%clk 0:00:30.9]} 26...
g6 {[%clk 0:01:15.3]} 27. Bd2 {[%clk 0:00:17.9]} 27... Qa2 {[%clk 0:01:12.1]}
28. Rc1 {[%clk 0:00:12.3]} 28... d4 {[%clk 0:01:11.6]} 29. Ne4 {[%clk
0:00:10.8]} 29... c3 {[%clk 0:01:07.8]} 30. Be1 {[%clk 0:00:10.2]} 30... Qd5
{[%clk 0:01:03.2]} 31. Qg3 {[%clk 0:00:04.2]} 31... c4 {[%clk 0:00:59.1]} 32.
Rg4 {[%clk 0:00:03.2]} 32... d3+ {[%clk 0:00:57.8]} 33. Kh1 {[%clk 0:00:02.9]}
33... d2 {[%clk 0:00:57.7]} 0-1

[Event "Early-Titled-Tuesday-Blitz-April-23-2024"]
[Site "Chess.com"]
[Date "2024.04.23"]
[Round "2"]
[White "wild3000"]
[Black "x-7171385435"]
[Result "1-0"]
[WhiteElo "2482"]
[BlackElo "2136"]
[TimeControl "180+1"]
[EndTime "8:17:07 PDT"]
[Termination "wild3000 won by resignation"]

1. d4 {[%clk 0:03:00]} 1... d5 {[%clk 0:02:56.7]} 2. Nf3 {[%clk 0:03:00.2]} 2...
Nf6 {[%clk 0:02:54.5]} 3. e3 {[%clk 0:03:01.1]} 3... e6 {[%clk 0:02:54.4]} 4.
Be2 {[%clk 0:03:02]} 4... Be7 {[%clk 0:02:52.8]} 5. O-O {[%clk 0:03:02.9]} 5...
O-O {[%clk 0:02:50]} 6. b3 {[%clk 0:03:03.8]} 6... b6 {[%clk 0:02:48.3]} 7. Bb2
{[%clk 0:03:04.7]} 7... Bb7 {[%clk 0:02:47.5]} 8. c4 {[%clk 0:03:05.6]} 8... c5
{[%clk 0:02:44.4]} 9. Nc3 {[%clk 0:03:05.4]} 9... Nc6 {[%clk 0:02:40.8]} 10.
cxd5 {[%clk 0:03:03.8]} 10... Nxd5 {[%clk 0:02:40.2]} 11. Nxd5 {[%clk
0:03:03.9]} 11... Qxd5 {[%clk 0:02:39.5]} 12. dxc5 {[%clk 0:03:02.2]} 12... Qxc5
{[%clk 0:02:25.2]} 13. Rc1 {[%clk 0:02:58.6]} 13... Qf5 {[%clk 0:02:24]} 14. Qd7
{[%clk 0:02:52.1]} 14... Rab8 {[%clk 0:02:00.8]} 15. Rxc6 {[%clk 0:02:48]} 15...
Bxc6 {[%clk 0:01:57.2]} 16. Qxc6 {[%clk 0:02:48.7]} 16... Rfc8 {[%clk
0:01:51.4]} 17. Qd7 {[%clk 0:02:47.9]} 17... Bf6 {[%clk 0:01:51]} 18. Bxf6
{[%clk 0:02:47]} 18... Qxf6 {[%clk 0:01:50.2]} 19. Qxa7 {[%clk 0:02:44.9]} 19...
Ra8 {[%clk 0:01:36.3]} 20. Qxb6 {[%clk 0:02:43.8]} 20... Rxa2 {[%clk 0:01:30.7]}
21. Bc4 {[%clk 0:02:43.2]} 21... h6 {[%clk 0:01:18.9]} 22. h3 {[%clk 0:02:40.3]}
22... Rca8 {[%clk 0:01:02.7]} 23. Qd4 {[%clk 0:02:38.1]} 23... Qe7 {[%clk
0:00:57.6]} 24. Ne5 {[%clk 0:02:34.8]} 24... Rd8 {[%clk 0:00:50]} 25. Qg4 {[%clk
0:02:23]} 25... Rdd2 {[%clk 0:00:48.4]} 26. b4 {[%clk 0:02:16.2]} 26... Rab2
{[%clk 0:00:40.3]} 27. b5 {[%clk 0:02:15.9]} 27... Qf6 {[%clk 0:00:36.4]} 28.
Qg3 {[%clk 0:02:00.5]} 28... Rdc2 {[%clk 0:00:16.4]} 29. Bd3 {[%clk 0:01:46.4]}
29... Rd2 {[%clk 0:00:12.6]} 30. Bc4 {[%clk 0:01:42]} 30... Rdc2 {[%clk
0:00:11.8]} 31. h4 {[%clk 0:01:42]} 31... g6 {[%clk 0:00:06.4]} 32. h5 {[%clk
0:01:37.9]} 32... g5 {[%clk 0:00:06.1]} 33. Ng4 {[%clk 0:01:36.3]} 33... Qg7
{[%clk 0:00:05.9]} 34. Bd3 {[%clk 0:01:32.3]} 34... Rc3 {[%clk 0:00:03.6]} 35.
Qb8+ {[%clk 0:01:31.2]} 35... Qf8 {[%clk 0:00:04.1]} 36. Nxh6+ {[%clk
0:01:24.8]} 36... Kg7 {[%clk 0:00:04.2]} 37. Qe5+ {[%clk 0:01:23.6]} 37... f6
{[%clk 0:00:04]} 38. Qxc3 {[%clk 0:01:23.5]} 38... Kxh6 {[%clk 0:00:03.2]} 39.
Qxb2 {[%clk 0:01:23.5]} 1-0

[Event "Early-Titled-Tuesday-Blitz-April-23-2024"]
[Site "Chess.com"]
[Date "2024.04.23"]
[Round "2"]
[White "HanSchut"]
[Black "chess_blitz00"]
[Result "1-0"]
[WhiteElo "2333"]
[BlackElo "2531"]
[TimeControl "180+1"]
[EndTime "8:17:09 PDT"]
[Termination "HanSchut won by checkmate"]

1. e4 {[%clk 0:03:00.9]} 1... d6 {[%clk 0:02:59.6]} 2. d4 {[%clk 0:03:01]} 2...
Nf6 {[%clk 0:03:00.5]} 3. Nc3 {[%clk 0:03:01.2]} 3... e5 {[%clk 0:03:01.3]} 4.
Nf3 {[%clk 0:02:54.1]} 4... Nbd7 {[%clk 0:03:01.4]} 5. h3 {[%clk 0:02:51.7]}
5... Be7 {[%clk 0:03:01.8]} 6. Be3 {[%clk 0:02:51.9]} 6... O-O {[%clk
0:03:01.2]} 7. Qd2 {[%clk 0:02:51.2]} 7... a6 {[%clk 0:02:59.5]} 8. a4 {[%clk
0:02:51.2]} 8... c6 {[%clk 0:02:57]} 9. g4 {[%clk 0:02:50.2]} 9... Qc7 {[%clk
0:02:51.1]} 10. Bg2 {[%clk 0:02:32.5]} 10... Re8 {[%clk 0:02:36.1]} 11. a5
{[%clk 0:02:32.2]} 11... d5 {[%clk 0:01:57.7]} 12. dxe5 {[%clk 0:02:22.3]} 12...
Nxe4 {[%clk 0:01:50.5]} 13. Nxe4 {[%clk 0:02:09.6]} 13... dxe4 {[%clk
0:01:51.4]} 14. Ng5 {[%clk 0:02:07]} 14... Bxg5 {[%clk 0:00:38.1]} 15. Bxg5
{[%clk 0:02:07.9]} 15... Nxe5 {[%clk 0:00:38.5]} 16. O-O-O {[%clk 0:01:58.2]}
16... Nc4 {[%clk 0:00:29]} 17. Qc3 {[%clk 0:01:48]} 17... Be6 {[%clk 0:00:16.4]}
18. Bxe4 {[%clk 0:01:38]} 18... Qxa5 {[%clk 0:00:16.2]} 19. Qxa5 {[%clk
0:01:34.4]} 19... Nxa5 {[%clk 0:00:17.1]} 20. b3 {[%clk 0:01:31.4]} 20... c5
{[%clk 0:00:13.6]} 21. Bd2 {[%clk 0:01:26.6]} 21... Nc6 {[%clk 0:00:12.2]} 22.
Bxc6 {[%clk 0:01:27.1]} 22... bxc6 {[%clk 0:00:13.1]} 23. Be3 {[%clk 0:01:27.3]}
23... c4 {[%clk 0:00:13.2]} 24. b4 {[%clk 0:01:21.1]} 24... a5 {[%clk
0:00:11.3]} 25. bxa5 {[%clk 0:01:21.4]} 25... Rxa5 {[%clk 0:00:10.9]} 26. Kd2
{[%clk 0:01:21.3]} 26... Ra2 {[%clk 0:00:10.2]} 27. Kc3 {[%clk 0:01:20.2]} 27...
Rea8 {[%clk 0:00:09.3]} 28. Rd6 {[%clk 0:01:13.3]} 28... Bd5 {[%clk 0:00:08.7]}
29. Re1 {[%clk 0:01:10.2]} 29... h6 {[%clk 0:00:09]} 30. Bc5 {[%clk 0:01:08.9]}
30... R8a5 {[%clk 0:00:05.3]} 31. Bb4 {[%clk 0:01:07.1]} 31... Rb5 {[%clk
0:00:04.4]} 32. Rd8+ {[%clk 0:01:05]} 32... Kh7 {[%clk 0:00:04.7]} 33. Ree8
{[%clk 0:01:05]} 33... Ra4 {[%clk 0:00:04.9]} 34. Bd6 {[%clk 0:01:03.1]} 34...
Kg6 {[%clk 0:00:02.7]} 35. f4 {[%clk 0:01:02.6]} 35... f5 {[%clk 0:00:02.1]} 36.
Be5 {[%clk 0:00:59.3]} 36... fxg4 {[%clk 0:00:02.2]} 37. hxg4 {[%clk 0:00:59.6]}
37... Bf3 {[%clk 0:00:02.7]} 38. Rd6+ {[%clk 0:00:58.2]} 38... Kh7 {[%clk
0:00:02.6]} 39. Re7 {[%clk 0:00:59.1]} 39... Bxg4 {[%clk 0:00:02.8]} 40. Rxg7+
{[%clk 0:00:58.7]} 40... Kh8 {[%clk 0:00:03.4]} 41. Rd8# {[%clk 0:00:58.8]} 1-0